Cogmind - Beta 11.1 @@@ ROGUE MODE // 2022.06.23 @ 10:19:20 Player: Klevski Result: Destroyed by as-40513 with Assembled F-torch Performance ------------- Evolutions (0) 0 Regions Visited (2) 400 Robots Destroyed (20) 100 Value Destroyed (344) 344 Prototype IDs (3) 60 Alien Tech Used (0) 0 Bonus (0) 0 TOTAL SCORE: 904 Bonus ------- None Cogmind --------- Core Integrity 0/250 Matter 300/300 Energy 59/100 System Corruption 2% Temperature Cool (64) Movement Core (200) Ox3 Location -10/Mines Parts ------- > --- POWER (1) -------- (None) > --- PROPULSION (2) --- (None) > --- UTILITY (2) ------ Medium Storage Unit Core Shielding > --- WEAPON (2) ------- (None) > --- INVENTORY (10) --- Ion Engine Improved Aluminum Leg Improved Aluminum Leg Terrain Scanner Seismic Detector Targeting Computer Light EM Pulse Cannon Light EM Pulse Cannon Autogun Autogun Peak State ------------ > --- POWER ------------ Ion Engine > --- PROPULSION ------- Improved Aluminum Leg Improved Aluminum Leg > --- UTILITY ---------- Small Storage Unit Core Shielding > --- WEAPON ----------- Light EM Pulse Cannon Light EM Pulse Cannon > --- INVENTORY -------- Ion Engine Aluminum Leg Aluminum Leg Medium Storage Unit Terrain Scanner Light EM Pulse Cannon Light EM Pulse Cannon Autogun [Rating: 12] Favorites ----------- Power Ion Engine Engine Ion Engine Propulsion Light Treads Treads Light Treads Leg Improved Aluminum Leg Utility Small Storage Unit Device Seismic Detector Storage Small Storage Unit Protection Core Shielding Weapon Medium Laser Energy Gun Medium Laser Energy Cannon Light EM Pulse Cannon Build | -11 -10 -10 ------- Run | Scr Mat Min Slots Evolved . | . . . Power . | . . . Propulsion . | . . . Utility . | . . . Weapon . | . . . Parts Attached 25 | 6 17 2 Power 3 | 1 2 . Engine 3 | 1 2 . Core . | . . . Reactor . | . . . Propulsion 8 | 2 6 . Treads 2 | 2 . . Leg 6 | . 6 . Wheel . | . . . Hover . | . . . Flight . | . . . Utility 6 | 1 3 2 Device 1 | . . 1 Storage 2 | 1 1 . Processor . | . . . Hackware . | . . . Protection 3 | . 2 1 Artifact . | . . . Weapon 8 | 2 6 . Energy Gun 5 | 2 3 . Energy Cannon 3 | . 3 . Ballistic Gun . | . . . Ballistic Cannon . | . . . Launcher . | . . . Special Weapon . | . . . Impact Weapon . | . . . Slashing Weapon . | . . . Piercing Weapon . | . . . Special Melee Weapon . | . . . Unidentified Prototypes . | . . . Parts Lost 5 | . . 5 Power 1 | . . 1 Propulsion 2 | . . 2 Utility . | . . . Weapon 2 | . . 2 Highest Loss Streak 5 | . . 5 To Critical Strikes . | . . . Average Slot Usage (%) 93 | . 93 89 Engine 13 | . 14 12 Treads 12 | . 13 . Leg 15 | . 14 28 Storage 14 | . 14 14 Protection 8 | . 7 12 Energy Gun 15 | . 16 . Energy Cannon 12 | . 11 20 Naked Turns . | . . . Heaviest Build 24 | 12 24 24 Greatest Support 40 | 40 40 26 Greatest Overweight (x) 1 | . 1 . Average Overweight (x) . | . . . Largest Inventory Capacity 10 | 8 10 10 Average Capacity 8 | 6 8 10 Most Carried 10 | 4 10 10 Average Carried 7 | 3 7 10 Final Capacity 10 | 8 10 10 Final Carried 10 | 4 10 10 Class Distribution -------------------- 100% | Mutant Dominant Class ---------------- Mutant | -10/Materials Mutant | -10/Mines Resources | -11 -10 -10 ----------- Run | Scr Mat Min Matter Collected 445 | 250 191 4 Remotely . | . . . Salvage Created 608 | . 539 69 Parts 43 | . 37 6 Haulers Intercepted 2 | . 2 . Recyclers Shooed . | . . . Parts Field Recycled . | . . . Retrieved Matter . | . . . Parts Self-Destructed . | . . . Prevented . | . . . Kills | -11 -10 -10 ------- Run | Scr Mat Min Combat Hostiles Destroyed 16 | . 12 4 Guns 8 | . 8 . Cannons 7 | . 3 4 AOE 1 | . 1 . Classes Destroyed 6 | . 5 1 Worker 1 | . 1 . Hauler 2 | . 2 . Watcher 2 | . 2 . Swarmer 9 | . 6 3 Grunt 6 | . 6 . Assembled 1 | . . 1 Best Kill Streak 4 | . 4 3 Combat Bots Only 3 | . 3 3 Max Kills in Single Turn 1 | . 1 1 Gunslinging . | . . . Exploded 1 | . 1 . Melee . | . . . Uniques/NPCs Destroyed . | . . . Combat | -11 -10 -10 -------- Run | Scr Mat Min Damage Taken 1117 | . 514 603 Core 250 | . 112 138 Absorbed by Shields . | . . . Redirected to Shielding 33 | . 6 27 Core Remaining (%) 100 | 100 . . Volleys Fired 55 | . 47 8 Largest 2 | . 2 2 Hottest 112 | . 112 112 Shots Fired 104 | . 89 15 Gun 71 | . 71 . Cannon 33 | . 18 15 Launcher . | . . . Special . | . . . Kinetic . | . . . Thermal 52 | . 52 . Explosive . | . . . Electromagnetic 52 | . 37 15 Robot Hit Streak 9 | . 9 3 Robot Miss Streak 5 | . 5 2 Penetration Max . | . . . Secondary Targets . | . . . Shots Hit Robots 58 | . 51 7 Core Hits 30 | . 25 5 Critical Kills . | . . . Critical Parts Destroyed . | . . . Critical Strikes 4 | . 4 . Burn 3 | . 3 . Corrupt 1 | . 1 . Melee Attacks . | . . . Impact . | . . . Slashing . | . . . Piercing . | . . . Sneak Attacks . | . . . Combat Hostiles . | . . . Follow-up Attacks . | . . . Damage Inflicted 1055 | . 861 194 Guns 561 | . 561 . Cannons 418 | . 228 190 Explosions 72 | . 72 . Melee . | . . . Ramming 4 | . . 4 Kinetic . | . . . Thermal 422 | . 422 . Explosive . | . . . Electromagnetic 629 | . 439 190 Impact . | . . . Slashing . | . . . Piercing . | . . . Highest Corruption 2 | . 2 2 Average Corruption 2 | . 2 2 Corruption Purged . | . . . Corruption Blocked . | . . . Effects 14 | . 13 1 Message Errors 4 | . 4 . Matter Fused 2 | . 2 . Heat Flow Errors 1 | . 1 . Energy Discharges 4 | . 3 1 Data Loss (minor) 1 | . 1 . Misfires 1 | . 1 . Alerts 1 | . 1 . Overload Shots . | . . . Overflow Damage . | . . . Projectiles . | . . . Explosions . | . . . Melee . | . . . Knockbacks . | . . . Impact . | . . . Kinetic . | . . . Secondary . | . . . Self-Inflicted Damage . | . . . Shots . | . . . Rammed . | . . . Targets Rammed 3 | . . 3 Kicked 3 | . . 3 Crushed . | . . . Highest Temperature 360 | . 360 204 Average Temperature 109 | . 110 101 Received Heat Transfer 451 | . 231 220 Effects 1 | . 1 . Energy Bleed 1 | . 1 . Siege Activations . | . . . Robots Corrupted . | . . . Combat Hostiles . | . . . Parts Fried 1 | . 1 . Impact Corruptions . | . . . Robots Melted . | . . . Combat Hostiles . | . . . Parts Melted 5 | . 5 . Heat Transferred 1184 | . 1184 . Parts Sabotaged . | . . . Parts Stolen . | . . . Parts Stripped . | . . . Power Chain Reactions 2 | . 2 . Missiles Intercepted . | . . . Alert | -11 -10 -10 ------- Run | Scr Mat Min Peak Influence 295 | . 295 131 Initial 46 | . . 46 Average 144 | . 157 117 Maximum Alert Level 1 | . 1 . Low Security (%) 72 | 100 68 100 Level 1 27 | . 31 . Level 2 . | . . . Level 3 . | . . . Level 4 . | . . . Level 5 . | . . . High Security . | . . . Max Security . | . . . Squads Dispatched 2 | . 2 . Investigation . | . . . Extermination . | . . . Reinforcement 2 | . 2 . Assault . | . . . Garrison . | . . . Intercept . | . . . Searches Triggered . | . . . Construction Impeded . | . . . Haulers Reinforced . | . . . Active Scanning Responses . | . . . Cargo Convoy Interrupts . | . . . Stealth | -11 -10 -10 --------- Run | Scr Mat Min Distress Signals 3 | . 3 . Communications Jammed . | . . . Distress Signals . | . . . Times Spotted 37 | . 24 13 Peak Tracking Total 10 | . 3 10 Tactical Retreats 1 | . 1 . Traps | -11 -10 -10 ------- Run | Scr Mat Min Traps Triggered 2 | . 2 . Indirectly . | . . . Trap Hack Attempts . | . . . Triggered . | . . . Disarmed . | . . . Reprogrammed . | . . . Reused . | . . . Traps Extracted . | . . . Installed . | . . . Triggered . | . . . Machines | -11 -10 -10 ---------- Run | Scr Mat Min Machines Disabled . | . . . Max in Single Turn . | . . . Machines Sabotaged . | . . . Garrisons Compromised . | . . . Overloaded Fab Kills . | . . . Hacking | -11 -10 -10 --------- Run | Scr Mat Min Machines Accessed 4 | . 4 . Terminals 3 | . 3 . Fabricators . | . . . Repair Stations . | . . . Recycling Units 1 | . 1 . Scanalyzers . | . . . Garrison Access . | . . . Total Hacks 14 | . 14 . Successful 11 | . 11 . Failed 3 | . 3 . Catastrophic 1 | . 1 . Database Lockouts . | . . . Manual 9 | . 9 . Terminals 10 | . 10 . Fabricators . | . . . Repair Stations . | . . . Recycling Units 4 | . 4 . Scanalyzers . | . . . Garrison Access . | . . . Terminal Hacks 3 | . 3 . Prototype ID Bank 2 | . 2 . Zone Layout 1 | . 1 . Fabricator Hacks . | . . . Repair Station Hacks . | . . . Recycling Unit Hacks . | . . . Scanalyzer . | . . . Garrison Access Hacks . | . . . Unauthorized Hacks 8 | . 8 . Terminals 4 | . 4 . Assimilate 1 | . 1 . Botnet 3 | . 3 . Fabricators . | . . . Repair Stations . | . . . Recycling Units 4 | . 4 . Monitor 1 | . 1 . Reject 1 | . 1 . Recyclers 1 | . 1 . Mask 1 | . 1 . Scanalyzers . | . . . Garrison Access . | . . . Data Cores Recovered . | . . . Used . | . . . Hacking Detections 3 | . 3 . Full Trace Events . | . . . Feedback Events . | . . . Feedback Blocked . | . . . Robot Schematics Acquired . | . . . Robots Built . | . . . Authchips . | . . . Time . | . . . Total Robot Build Rating . | . . . Part Schematics Acquired . | . . . Parts Built . | . . . Authchips . | . . . Time . | . . . Total Part Build Rating . | . . . Parts Repaired . | . . . Time . | . . . Parts Recycled . | . . . Recycled Matter . | . . . Retrieved Matter . | . . . Retrieved Components . | . . . Parts Scanalyzed . | . . . Part Schematics Acquired . | . . . Parts Damaged . | . . . Bothacking | -11 -10 -10 ------------ Run | Scr Mat Min Used RIF Installer . | . . . Robots Hacked . | . . . Non-combat . | . . . Combat . | . . . Robot Hacks Applied . | . . . Relay Couplers Released . | . . . Fabnet Peak Effective % . | . . . Robots Rewired . | . . . Allies Hacked . | . . . Hacks Repelled . | . . . Allies | -11 -10 -10 -------- Run | Scr Mat Min Total Allies . | . . . Largest Group . | . . . Highest-Rated Group . | . . . Highest-Rated Ally . | . . . Total Orders . | . . . Ally Attacks . | . . . Total Damage . | . . . Kills . | . . . Allies Corrupted . | . . . Allies Melted . | . . . Intel | -11 -10 -10 ------- Run | Scr Mat Min Robot Analysis Total . | . . . Derelict Logs Recovered . | . . . Drone Launches . | . . . Drone Recoveries . | . . . Exploration | -11 -10 -10 ------------- Run | Scr Mat Min Turns Passed 1241 | 87 1083 71 Spaces Moved 725 | 50 641 34 Core 4 | 4 . . Treads 295 | 46 249 . Legs 426 | . 392 34 Wheels . | . . . Hover . | . . . Flight . | . . . Fastest Speed 50 | 50 120 120 Average Speed 135 | 151 135 120 Slowest Speed 190 | 160 190 120 Overloaded Moves . | . . . Propulsion Burnouts . | . . . Robots Hopped . | . . . Cave-ins Triggered . | . . . Exploration Rate (%) 33 | 5 87 8 Regions Visited 2 Branch Regions 1 Pre-discovered Areas . | . . . Known Exits Taken . | . . . Unknown Exits Taken 2 | 1 1 . Scrap Searched . | . . . Spaces Dug . | . . . Terrain Destroyed 10 | . 10 . Melee . | . . . Projectile . | . . . AOE 10 | . 10 . Terrain Rammed . | . . . Walls Destroyed . | . . . Machines Disabled . | . . . Actions | -11 -10 -10 --------- Run | Scr Mat Min Total 881 | 59 774 48 Wait 30 | . 29 1 Move 723 | 49 640 34 Hop . | . . . Pick Up 22 | 4 18 . Fast Attach 15 | 6 9 . Attach 1 | . 1 . Detach 1 | . 1 . Swap 9 | . 7 2 Drop 22 | . 22 . Fire 55 | . 47 8 Melee . | . . . Ram . | . . . Kick 3 | . . 3 Crush . | . . . Escape Stasis . | . . . Rewire . | . . . Trap . | . . . Miscellaneous . | . . . Route ------- -11/Scrapyard -10/Materials (discovered 3 exits: [*Mat x2] / [*Min]) -10/Mines History --------- Turn | Location | Event 11 | -11/Scrapyard | Discovered new exit (range 16) 88 | -11/Scrapyard | Entered Materials 315 | -10/Materials | Build established: Mutant 435 | -10/Materials | Discovered new exit (range 3) 1061 | -10/Materials | Discovered new exit (range 15) 1103 | -10/Materials | Discovered new exit (range 6) 1171 | -10/Materials | Entered Mines 1203 | -10/Mines | Assembled infested the area 1227 | -10/Mines | Core integrity fell below 50% 1240 | -10/Mines | Core integrity fell below 20% 1242 | -10/Mines | Destroyed by as-40513 with Assembled F-torch Last Messages --------------- 01142_ System corrupted: IFF burst signal emitted. LOCATION=UNKNOWN GOAL=ESCAPE 01174_ S-10 Pest destroyed. 01175_ S-10 Pest misfires. 01177_ S-10 Pest destroyed. 01191_ Acquired 4 matter. 01203_ ALERT: Infestation in the mines, dispatching Demolisher response squad. 01215_ System corrupted: Energy discharge (-45). 01227_ Lgt. EM Pulse Cannon destroyed. 01228_ as-94077 destroyed. 01228_ Lgt. EM Pulse Cannon destroyed. 01232_ Ion Engine destroyed. 01235_ as-43249 destroyed. 01239_ Kicked as-74563. 01240_ Imp. Aluminum Leg destroyed. 01240_ Kicked as-74563. 01242_ Imp. Aluminum Leg destroyed. 01242_ Critical hit (Burn: +80). Map ----- +----------------------------------------------------+ | ????????????????????????????????? | | ????????????????????????????????? | | ????????????????????????????????? | | ????????????????????????????????? | | ????????????????????????????????? | | ????????????????????????????????? | | ????????????????????????????????? | | ????????????????????????????????? | | ????????????????????????????????? | | ????????????????????????????????? | | ????????????????????????????????? | | ????????????????????????????????? | | ????????????????????????????????? | | ????????????????????????????????? | | ????????????????????????????????? | | ????????????????????????????????? | | ????????????????????????????????? | | ?????????????????????????#####??? | | ????????? ############ ##?? | | ????????? #?? | | ????????? #?? | | ????????????????######### #?? | | ????????????????????????## % #?? | | ?????????????????????????#a a #?? | | ????????????????????????##aaa##?? | | ??????????????????????###@a ##??? | | ???????????????????#### aa ##???? | | ??????????????????## % ##????? | | ??????????????????# ##????? | | ??????????????????# ##???? | | ??????????????????### #???? | | ????????????????????## ##???? | | ?????????????????????# ##????? | | ?????????????????????## #?????? | | ??????????????????????### #?????? | | ?????????????????????#### ##????? | | ?????????????????????#==[ #????? | | ?????????????????????#*[%%*#????? | | ?????????????????????# % #????? | | ?????????????????????# #????? | | ?????????????????????# #????? | | ?????????????????????# #????? | | ?????????????????????#######????? | | ????????????????????????????????? | | ????????????????????????????????? | | ????????????????????????????????? | | ????????????????????????????????? | | ????????????????????????????????? | | | | | +----------------------------------------------------+ Best States ------------- Heat Dissipation 25 Energy Generation 10 Energy Capacity 250 Matter Stores 300 Matter Capacity 300 Sight Range 16 Terrain Scan Density 10 Core Shielding 20 Weapon Shielding 33 Evasion (%) 55 Recoil Reduction 2 Item Schematics ----------------- None Robot Schematics ------------------ None Fabricated ------------ Nothing Alien Tech Used ----------------- None Achievements -------------- None Challenges ------------ None Game ------ Seed RegenerativeDeliveryBay Manual? 0 Play Time 00:19:08 Cumulative 110.1 hours Start 2022.06.23 @ 09:51:29 End 2022.06.23 @ 10:19:20 Sessions 1 Manual Loads 0 Difficulty Rogue Special Mode None Game No. 40 Rogue 40 Adventurer 0 Explorer 0 Win Type - Total 1 Types 1/0/0/0/0/0/0/0/0 Lore% 53 Gallery% 59 Achievement% 50 Wizard Run 0 Options --------- ASCII 0 Keyboard 0 Movement Numpad Keybinds 0 Fullscreen 1 Font 24/Smallcaps Map View 76x50 Tactical HUD 1 Map Filters NONE Filters NONE Steam 1 RUN: 37e8ee28-8554-41c8-9aae-4c45e9faf5d3